[Event "*** Titled Tuesday Blitz"]
[Site "Chess.com"]
[Date "2020.11.03"]
[Round "2"]
[White "AryanTari"]
[Black "pedromartinez91"]
[Result "1-0"]
[WhiteElo "2905"]
[BlackElo "2587"]
[TimeControl "180+1"]
[EndTime "10:19:26 PST"]
[Termination "AryanTari won by resignation"]

1. c4 {[%clk 0:03:00.9]} 1... e6 {[%clk 0:02:55.5]} 2. Nc3 {[%clk 0:03:00.6]}
2... d5 {[%clk 0:02:55.6]} 3. e3 {[%clk 0:03:00.5]} 3... Nf6 {[%clk 0:02:55]} 4.
Nf3 {[%clk 0:03:00.6]} 4... Be7 {[%clk 0:02:55.1]} 5. b3 {[%clk 0:03:00.2]} 5...
c5 {[%clk 0:02:53.9]} 6. cxd5 {[%clk 0:02:56.5]} 6... exd5 {[%clk 0:02:48.1]} 7.
Bb5+ {[%clk 0:02:46.8]} 7... Nc6 {[%clk 0:02:39.5]} 8. O-O {[%clk 0:02:41.8]}
8... O-O {[%clk 0:02:39.1]} 9. d4 {[%clk 0:02:39.4]} 9... cxd4 {[%clk
0:02:33.8]} 10. Nxd4 {[%clk 0:02:38.5]} 10... Bd7 {[%clk 0:02:34]} 11. Bxc6
{[%clk 0:02:31.4]} 11... bxc6 {[%clk 0:02:34]} 12. Bb2 {[%clk 0:02:32]} 12...
Bd6 {[%clk 0:02:32.6]} 13. Nce2 {[%clk 0:02:29.4]} 13... Ng4 {[%clk 0:02:28.5]}
14. Ng3 {[%clk 0:02:26.9]} 14... Qh4 {[%clk 0:02:18]} 15. Nf3 {[%clk 0:02:27.2]}
15... Qh6 {[%clk 0:02:06.4]} 16. Qd4 {[%clk 0:01:57.7]} 16... Rfb8 {[%clk
0:01:44.9]} 17. Bc3 {[%clk 0:01:39.1]} 17... Be6 {[%clk 0:01:33.1]} 18. e4
{[%clk 0:01:31]} 18... c5 {[%clk 0:01:30.5]} 19. Qd3 {[%clk 0:01:29.5]} 19... d4
{[%clk 0:01:27.2]} 20. Bd2 {[%clk 0:01:29.5]} 20... Bf4 {[%clk 0:01:24.1]} 21.
Bxf4 {[%clk 0:01:26.1]} 21... Qxf4 {[%clk 0:01:25]} 22. Rae1 {[%clk 0:01:17.6]}
22... a5 {[%clk 0:01:15.1]} 23. e5 {[%clk 0:01:14.6]} 23... Bd5 {[%clk
0:01:14.9]} 24. Qf5 {[%clk 0:01:07.4]} 24... Qxf5 {[%clk 0:01:08.2]} 25. Nxf5
{[%clk 0:01:08.3]} 25... Bxf3 {[%clk 0:01:03.3]} 26. gxf3 {[%clk 0:01:07.8]}
26... Nh6 {[%clk 0:01:03.6]} 27. Nxh6+ {[%clk 0:00:46.7]} 27... gxh6 {[%clk
0:01:04.5]} 28. Rc1 {[%clk 0:00:47.3]} 28... Rb5 {[%clk 0:01:00.3]} 29. Rc4
{[%clk 0:00:47.8]} 29... a4 {[%clk 0:00:50.2]} 30. bxa4 {[%clk 0:00:47.7]} 30...
Rba5 {[%clk 0:00:50.6]} 31. Rd1 {[%clk 0:00:43.4]} 31... Kg7 {[%clk 0:00:47.7]}
32. Rdc1 {[%clk 0:00:31.8]} 32... Rxa4 {[%clk 0:00:36]} 33. Rxc5 {[%clk
0:00:32.2]} 33... Rxa2 {[%clk 0:00:36]} 34. Rc7 {[%clk 0:00:32.9]} 34... d3
{[%clk 0:00:25]} 35. Rd7 {[%clk 0:00:28.2]} 35... d2 {[%clk 0:00:21.9]} 36. Rd1
{[%clk 0:00:28.2]} 36... R8a5 {[%clk 0:00:20.6]} 37. e6 {[%clk 0:00:26.4]} 37...
Re5 {[%clk 0:00:20.7]} 38. e7 {[%clk 0:00:07.5]} 38... Re1+ {[%clk 0:00:20.3]}
39. Kg2 {[%clk 0:00:07.5]} 39... Re6 {[%clk 0:00:17.4]} 40. f4 {[%clk
0:00:04.2]} 40... Kf6 {[%clk 0:00:17.4]} 41. f5 {[%clk 0:00:03.3]} 41... Rxe7
{[%clk 0:00:16.9]} 42. R7xd2 {[%clk 0:00:04]} 42... Re5 {[%clk 0:00:17]} 43.
Rxa2 {[%clk 0:00:03.8]} 1-0

[Event "*** Titled Tuesday Blitz"]
[Site "Chess.com"]
[Date "2020.11.03"]
[Round "2"]
[White "Tashik"]
[Black "Nikolakis2014"]
[Result "0-1"]
[WhiteElo "2494"]
[BlackElo "2748"]
[TimeControl "180+1"]
[EndTime "10:19:26 PST"]
[Termination "Nikolakis2014 won on time"]

1. c4 {[%clk 0:03:00.9]} 1... Nf6 {[%clk 0:02:59.1]} 2. Nc3 {[%clk 0:03:00.8]}
2... g6 {[%clk 0:02:59.3]} 3. e4 {[%clk 0:03:01.3]} 3... d6 {[%clk 0:02:58.3]}
4. d4 {[%clk 0:03:01.9]} 4... Bg7 {[%clk 0:02:58.3]} 5. f4 {[%clk 0:03:02.6]}
5... O-O {[%clk 0:02:57.4]} 6. Nf3 {[%clk 0:03:03.2]} 6... c5 {[%clk 0:02:57.5]}
7. d5 {[%clk 0:03:03.3]} 7... e6 {[%clk 0:02:57.8]} 8. dxe6 {[%clk 0:03:04.2]}
8... Bxe6 {[%clk 0:02:54.7]} 9. Bd3 {[%clk 0:03:04.6]} 9... Nc6 {[%clk
0:02:53.6]} 10. f5 {[%clk 0:03:04.7]} 10... Bd7 {[%clk 0:02:45.5]} 11. O-O
{[%clk 0:03:05.2]} 11... Ng4 {[%clk 0:02:32.2]} 12. Bg5 {[%clk 0:03:04.1]} 12...
Bf6 {[%clk 0:02:29.1]} 13. Qd2 {[%clk 0:02:54.5]} 13... Nce5 {[%clk 0:02:13.8]}
14. Bxf6 {[%clk 0:02:49]} 14... Qxf6 {[%clk 0:01:54.7]} 15. Nd5 {[%clk
0:02:42.3]} 15... Nxf3+ {[%clk 0:01:39.1]} 16. gxf3 {[%clk 0:02:43.2]} 16...
Qd4+ {[%clk 0:01:38.5]} 17. Kh1 {[%clk 0:02:42]} 17... Nf6 {[%clk 0:01:26.9]}
18. Rad1 {[%clk 0:02:13.9]} 18... Nxd5 {[%clk 0:01:23]} 19. cxd5 {[%clk
0:01:50.7]} 19... Kh8 {[%clk 0:01:22.5]} 20. Qf4 {[%clk 0:01:43.1]} 20... gxf5
{[%clk 0:01:19.9]} 21. Qxd6 {[%clk 0:01:39.6]} 21... Rad8 {[%clk 0:01:12.6]} 22.
e5 {[%clk 0:01:25.6]} 22... Be6 {[%clk 0:01:08.4]} 23. Bb1 {[%clk 0:00:32.6]}
23... Rxd6 {[%clk 0:01:00.9]} 24. Rxd4 {[%clk 0:00:31.6]} 24... Rxd5 {[%clk
0:00:52.4]} 25. Rxd5 {[%clk 0:00:31.5]} 25... Bxd5 {[%clk 0:00:52.7]} 26. Bxf5
{[%clk 0:00:32.1]} 26... Re8 {[%clk 0:00:53]} 27. Be4 {[%clk 0:00:17.4]} 27...
Rxe5 {[%clk 0:00:49]} 28. Bxd5 {[%clk 0:00:17.9]} 28... Rxd5 {[%clk 0:00:49.2]}
29. Rf2 {[%clk 0:00:18.7]} 29... Kg7 {[%clk 0:00:49.2]} 30. Kg2 {[%clk
0:00:18.9]} 30... Kf6 {[%clk 0:00:49.4]} 31. f4 {[%clk 0:00:19.2]} 31... Rd3
{[%clk 0:00:48.3]} 32. Re2 {[%clk 0:00:15.9]} 32... c4 {[%clk 0:00:47.8]} 33.
Rc2 {[%clk 0:00:10.7]} 33... b5 {[%clk 0:00:47.3]} 34. Rf2 {[%clk 0:00:09.5]}
34... Kf5 {[%clk 0:00:46.2]} 35. Re2 {[%clk 0:00:08.4]} 35... a6 {[%clk
0:00:43.4]} 36. Rf2 {[%clk 0:00:07.9]} 36... a5 {[%clk 0:00:41.3]} 37. Kf1
{[%clk 0:00:06.2]} 37... a4 {[%clk 0:00:40.2]} 38. a3 {[%clk 0:00:04.8]} 38...
h5 {[%clk 0:00:37.5]} 39. Ke2 {[%clk 0:00:04]} 39... Rb3 {[%clk 0:00:36.7]} 40.
Kd1 {[%clk 0:00:03.7]} 40... h4 {[%clk 0:00:36.8]} 41. Kc2 {[%clk 0:00:03.3]}
41... h3 {[%clk 0:00:35.4]} 42. Kc1 {[%clk 0:00:02.6]} 42... Ke4 {[%clk
0:00:35]} 43. Kc2 {[%clk 0:00:02.8]} 43... Rf3 {[%clk 0:00:34.5]} 44. Re2+
{[%clk 0:00:02.2]} 44... Kxf4 {[%clk 0:00:34.8]} 45. Re7 {[%clk 0:00:02.8]}
45... Rf2+ {[%clk 0:00:34.4]} 46. Kc3 {[%clk 0:00:02.4]} 46... f5 {[%clk
0:00:34.2]} 47. Rb7 {[%clk 0:00:02.2]} 47... Rxh2 {[%clk 0:00:34.3]} 48. Rxb5
{[%clk 0:00:02.7]} 48... Rg2 {[%clk 0:00:34.7]} 49. Rb8 {[%clk 0:00:02.5]} 49...
h2 {[%clk 0:00:31.1]} 50. Rh8 {[%clk 0:00:03]} 50... Kg3 {[%clk 0:00:31.4]} 51.
Kxc4 {[%clk 0:00:01.4]} 51... Rxb2 {[%clk 0:00:30.4]} 0-1

[Event "*** Titled Tuesday Blitz"]
[Site "Chess.com"]
[Date "2020.11.03"]
[Round "2"]
[White "Ladislav1969"]
[Black "asms9699"]
[Result "1-0"]
[WhiteElo "2341"]
[BlackElo "2547"]
[TimeControl "180+1"]
[EndTime "10:19:26 PST"]
[Termination "Ladislav1969 won by resignation"]

1. e4 {[%clk 0:03:00.9]} 1... e6 {[%clk 0:02:59.6]} 2. d4 {[%clk 0:03:00.9]}
2... d5 {[%clk 0:03:00.2]} 3. e5 {[%clk 0:03:01.6]} 3... c5 {[%clk 0:03:00.2]}
4. c3 {[%clk 0:03:02.5]} 4... Qb6 {[%clk 0:03:00.6]} 5. Nf3 {[%clk 0:03:03.1]}
5... Bd7 {[%clk 0:03:00.8]} 6. a3 {[%clk 0:03:01.6]} 6... Bb5 {[%clk 0:03:00.7]}
7. c4 {[%clk 0:03:01.1]} 7... Bxc4 {[%clk 0:03:00.1]} 8. Bxc4 {[%clk 0:02:59.2]}
8... dxc4 {[%clk 0:03:01]} 9. Nbd2 {[%clk 0:02:58.6]} 9... cxd4 {[%clk 0:02:55]}
10. Nxc4 {[%clk 0:02:58]} 10... Qc5 {[%clk 0:02:48.6]} 11. Qxd4 {[%clk
0:02:55.9]} 11... Nc6 {[%clk 0:02:47.9]} 12. Qxc5 {[%clk 0:01:58]} 12... Bxc5
{[%clk 0:02:48.8]} 13. b4 {[%clk 0:01:58.2]} 13... Be7 {[%clk 0:02:37.1]} 14.
Bf4 {[%clk 0:01:50.5]} 14... O-O-O {[%clk 0:02:30.9]} 15. Rc1 {[%clk 0:01:41.5]}
15... Kb8 {[%clk 0:02:29.8]} 16. Nd6 {[%clk 0:01:32.1]} 16... Bxd6 {[%clk
0:02:11.6]} 17. exd6 {[%clk 0:01:32.1]} 17... a6 {[%clk 0:02:02.3]} 18. d7+
{[%clk 0:01:12.5]} 18... Ka7 {[%clk 0:01:52]} 19. Ne5 {[%clk 0:01:12.2]} 19...
Nxe5 {[%clk 0:01:34.1]} 20. Bxe5 {[%clk 0:01:12.2]} 20... Nf6 {[%clk 0:01:01.5]}
21. Bd4+ {[%clk 0:00:42.7]} 21... Ka8 {[%clk 0:00:56.1]} 22. Bxf6 {[%clk
0:00:34.6]} 22... gxf6 {[%clk 0:00:55.1]} 23. Rd1 {[%clk 0:00:35.2]} 23... Kb8
{[%clk 0:00:55.1]} 24. Ke2 {[%clk 0:00:34.8]} 24... Kc7 {[%clk 0:00:54.7]} 25.
Rc1+ {[%clk 0:00:32.6]} 25... Kb8 {[%clk 0:00:13.4]} 26. Rhd1 {[%clk 0:00:33.5]}
26... Rhg8 {[%clk 0:00:12.8]} 27. g3 {[%clk 0:00:32.8]} 27... Rg5 {[%clk
0:00:12.5]} 28. Rd6 {[%clk 0:00:23.9]} 28... Rd5 {[%clk 0:00:07.1]} 29. Rxd5
{[%clk 0:00:22.4]} 29... exd5 {[%clk 0:00:08]} 30. Kd3 {[%clk 0:00:18.8]} 30...
Rxd7 {[%clk 0:00:07.9]} 31. Kd4 {[%clk 0:00:19.7]} 31... Rd8 {[%clk 0:00:02.6]}
32. Rc5 {[%clk 0:00:18.9]} 32... Re8 {[%clk 0:00:01.3]} 33. Rxd5 {[%clk
0:00:16.9]} 33... Re2 {[%clk 0:00:02]} 34. Rf5 {[%clk 0:00:16.6]} 34... Kc7
{[%clk 0:00:01.9]} 35. Rxf6 {[%clk 0:00:16.1]} 35... Re7 {[%clk 0:00:02.8]} 36.
Kd5 {[%clk 0:00:15.3]} 36... Rd7+ {[%clk 0:00:03.4]} 37. Kc5 {[%clk 0:00:14.9]}
37... Re7 {[%clk 0:00:03.6]} 38. h4 {[%clk 0:00:14.5]} 38... Re5+ {[%clk
0:00:03.8]} 39. Kd4 {[%clk 0:00:14]} 39... Re7 {[%clk 0:00:04.7]} 40. h5 {[%clk
0:00:13.7]} 40... Kd8 {[%clk 0:00:05.2]} 41. Rh6 {[%clk 0:00:13.5]} 41... Rd7+
{[%clk 0:00:04.8]} 42. Ke3 {[%clk 0:00:12.6]} 42... Rc7 {[%clk 0:00:05]} 43.
Rxh7 {[%clk 0:00:12.6]} 43... Rc3+ {[%clk 0:00:05.2]} 44. Ke4 {[%clk 0:00:12.3]}
44... Ke7 {[%clk 0:00:04.4]} 45. Rh8 {[%clk 0:00:11.4]} 45... Rxa3 {[%clk
0:00:04.6]} 46. Rb8 {[%clk 0:00:11.4]} 46... b5 {[%clk 0:00:03.9]} 47. h6 {[%clk
0:00:09.9]} 47... Ra4 {[%clk 0:00:03.9]} 48. h7 {[%clk 0:00:09.6]} 48... Rxb4+
{[%clk 0:00:04.5]} 49. Ke3 {[%clk 0:00:09.9]} 1-0

[Event "*** Titled Tuesday Blitz"]
[Site "Chess.com"]
[Date "2020.11.03"]
[Round "2"]
[White "WeAintSurePal"]
[Black "Andreikka"]
[Result "0-1"]
[WhiteElo "2353"]
[BlackElo "2908"]
[TimeControl "180+1"]
[EndTime "10:19:29 PST"]
[Termination "Andreikka won on time"]

1. d4 {[%clk 0:03:00.9]} 1... Nf6 {[%clk 0:02:55.8]} 2. Nf3 {[%clk 0:02:59.4]}
2... e6 {[%clk 0:02:55.7]} 3. Bg5 {[%clk 0:02:52.7]} 3... h6 {[%clk 0:02:53.5]}
4. Bh4 {[%clk 0:02:51.7]} 4... d5 {[%clk 0:02:51.6]} 5. Nbd2 {[%clk 0:02:50.8]}
5... Nbd7 {[%clk 0:02:51.8]} 6. e3 {[%clk 0:02:50.6]} 6... g5 {[%clk 0:02:51.3]}
7. Bg3 {[%clk 0:02:50.3]} 7... Nh5 {[%clk 0:02:50.1]} 8. Bd3 {[%clk 0:02:43.1]}
8... Bg7 {[%clk 0:02:49.7]} 9. c3 {[%clk 0:02:42.1]} 9... Nxg3 {[%clk
0:02:46.9]} 10. hxg3 {[%clk 0:02:41.8]} 10... c5 {[%clk 0:02:47.8]} 11. Qe2
{[%clk 0:02:34.3]} 11... Qe7 {[%clk 0:02:46.7]} 12. e4 {[%clk 0:02:31]} 12...
cxd4 {[%clk 0:02:43.9]} 13. Nxd4 {[%clk 0:02:29.9]} 13... Nc5 {[%clk 0:02:41.4]}
14. Bb5+ {[%clk 0:02:27.6]} 14... Bd7 {[%clk 0:02:41]} 15. exd5 {[%clk
0:02:21.8]} 15... exd5 {[%clk 0:02:24.4]} 16. Bxd7+ {[%clk 0:02:20.1]} 16...
Kxd7 {[%clk 0:02:24.3]} 17. Qxe7+ {[%clk 0:02:14.2]} 17... Kxe7 {[%clk
0:02:24.2]} 18. Nf5+ {[%clk 0:02:14]} 18... Kf6 {[%clk 0:02:24.7]} 19. Nxg7
{[%clk 0:02:11.9]} 19... Kxg7 {[%clk 0:02:25.6]} 20. O-O {[%clk 0:01:54.7]}
20... Rhe8 {[%clk 0:02:22.3]} 21. Nf3 {[%clk 0:01:49.6]} 21... Na4 {[%clk
0:02:13.9]} 22. Rad1 {[%clk 0:01:38.5]} 22... Nxb2 {[%clk 0:02:11.4]} 23. Rxd5
{[%clk 0:01:37.9]} 23... Na4 {[%clk 0:02:10.3]} 24. c4 {[%clk 0:01:31.8]} 24...
Rac8 {[%clk 0:02:01.2]} 25. Rc1 {[%clk 0:01:17.5]} 25... Nb6 {[%clk 0:01:59]}
26. Rb5 {[%clk 0:01:12.4]} 26... Re2 {[%clk 0:01:53.4]} 27. a4 {[%clk
0:01:06.3]} 27... Ra2 {[%clk 0:01:36.1]} 28. a5 {[%clk 0:01:06.1]} 28... Rxc4
{[%clk 0:01:33.7]} 29. Rd1 {[%clk 0:00:58.2]} 29... Nc8 {[%clk 0:01:14.3]} 30.
Rxb7 {[%clk 0:00:54.1]} 30... Rxa5 {[%clk 0:01:13.9]} 31. Rdd7 {[%clk
0:00:48.9]} 31... Rc1+ {[%clk 0:01:06.3]} 32. Kh2 {[%clk 0:00:48.5]} 32... Raa1
{[%clk 0:01:07.2]} 33. Rxf7+ {[%clk 0:00:44.1]} 33... Kg8 {[%clk 0:01:07.2]} 34.
Rg7+ {[%clk 0:00:28.2]} 34... Kf8 {[%clk 0:01:07.1]} 35. g4 {[%clk 0:00:22.9]}
35... Nd6 {[%clk 0:01:04.1]} 36. Rbe7 {[%clk 0:00:18.6]} 36... Rh1+ {[%clk
0:01:02.1]} 37. Kg3 {[%clk 0:00:18.6]} 37... Ne4+ {[%clk 0:01:00.9]} 38. Rxe4
{[%clk 0:00:18.4]} 38... Kxg7 {[%clk 0:01:01.8]} 39. Nd4 {[%clk 0:00:18.2]}
39... a5 {[%clk 0:01:00.6]} 40. Re7+ {[%clk 0:00:15]} 40... Kf6 {[%clk
0:00:57.6]} 41. Re6+ {[%clk 0:00:14.3]} 41... Kf7 {[%clk 0:00:57.6]} 42. Ra6
{[%clk 0:00:14.1]} 42... a4 {[%clk 0:00:56.9]} 43. Nf5 {[%clk 0:00:14.1]} 43...
a3 {[%clk 0:00:56.7]} 44. Nxh6+ {[%clk 0:00:13.2]} 44... Ke8 {[%clk 0:00:57.1]}
45. Nf5 {[%clk 0:00:10.9]} 45... Rhc1 {[%clk 0:00:56.3]} 46. Nd6+ {[%clk
0:00:10.1]} 46... Kd7 {[%clk 0:00:53.8]} 47. Ne4 {[%clk 0:00:08.5]} 47... a2
{[%clk 0:00:53.1]} 48. Ra7+ {[%clk 0:00:08.1]} 48... Kc8 {[%clk 0:00:52.4]} 49.
Nd6+ {[%clk 0:00:07.2]} 49... Kb8 {[%clk 0:00:52.4]} 50. Rb7+ {[%clk 0:00:06.6]}
50... Ka8 {[%clk 0:00:52.2]} 51. Rb2 {[%clk 0:00:06.7]} 51... Rc3+ {[%clk
0:00:48.7]} 52. f3 {[%clk 0:00:06.7]} 52... Ra3 {[%clk 0:00:48.2]} 53. Nb5
{[%clk 0:00:05.6]} 53... Rd3 {[%clk 0:00:46.3]} 54. Nc7+ {[%clk 0:00:05.1]}
54... Ka7 {[%clk 0:00:45.8]} 55. Nb5+ {[%clk 0:00:05.3]} 55... Ka6 {[%clk
0:00:46.3]} 56. Nc7+ {[%clk 0:00:05.3]} 56... Ka5 {[%clk 0:00:46.7]} 57. Ne6
{[%clk 0:00:01.9]} 57... Rc3 {[%clk 0:00:42.9]} 58. Nd4 {[%clk 0:00:01.6]} 58...
Ka4 {[%clk 0:00:41.3]} 0-1

[Event "*** Titled Tuesday Blitz"]
[Site "Chess.com"]
[Date "2020.11.03"]
[Round "2"]
[White "Alomaterapia"]
[Black "Harsha_Bharathakoti"]
[Result "0-1"]
[WhiteElo "2519"]
[BlackElo "2808"]
[TimeControl "180+1"]
[EndTime "10:19:30 PST"]
[Termination "Harsha_Bharathakoti won on time"]

1. e4 {[%clk 0:03:00.9]} 1... c6 {[%clk 0:02:58.3]} 2. d4 {[%clk 0:03:00.2]}
2... d5 {[%clk 0:02:59.2]} 3. e5 {[%clk 0:03:00.7]} 3... c5 {[%clk 0:02:50.1]}
4. dxc5 {[%clk 0:02:55.6]} 4... e6 {[%clk 0:02:48.5]} 5. Bd3 {[%clk 0:02:54.8]}
5... Nd7 {[%clk 0:02:47]} 6. Nf3 {[%clk 0:02:51.1]} 6... Nxc5 {[%clk 0:02:45.5]}
7. O-O {[%clk 0:02:51.6]} 7... Nxd3 {[%clk 0:02:43.1]} 8. Qxd3 {[%clk
0:02:51.1]} 8... Ne7 {[%clk 0:02:43.4]} 9. c4 {[%clk 0:02:46.9]} 9... dxc4
{[%clk 0:02:32.1]} 10. Qxc4 {[%clk 0:02:46.7]} 10... Nd5 {[%clk 0:02:19.6]} 11.
Nc3 {[%clk 0:02:39.7]} 11... Nxc3 {[%clk 0:02:14.2]} 12. Qxc3 {[%clk 0:02:32.5]}
12... Be7 {[%clk 0:02:14.3]} 13. Be3 {[%clk 0:02:27.2]} 13... O-O {[%clk
0:02:13.6]} 14. Rfd1 {[%clk 0:02:26.8]} 14... Bd7 {[%clk 0:02:06.1]} 15. Qb3
{[%clk 0:01:49.6]} 15... Qe8 {[%clk 0:01:54.6]} 16. Qxb7 {[%clk 0:01:27.8]}
16... Bc6 {[%clk 0:01:54.4]} 17. Qc7 {[%clk 0:01:27.6]} 17... Bd5 {[%clk
0:01:30]} 18. Nd4 {[%clk 0:01:12.3]} 18... Bd8 {[%clk 0:00:42.8]} 19. Qc3 {[%clk
0:00:53.9]} 19... Bb6 {[%clk 0:00:41.3]} 20. a4 {[%clk 0:00:48.3]} 20... Rc8
{[%clk 0:00:36.4]} 21. Qd2 {[%clk 0:00:46.2]} 21... Bxd4 {[%clk 0:00:24.1]} 22.
Qxd4 {[%clk 0:00:39.3]} 22... a6 {[%clk 0:00:17.2]} 23. Rdc1 {[%clk 0:00:36.8]}
23... Qd7 {[%clk 0:00:14.6]} 24. Qg4 {[%clk 0:00:29.8]} 24... Kh8 {[%clk
0:00:14.6]} 25. h4 {[%clk 0:00:29.1]} 25... h6 {[%clk 0:00:13.8]} 26. Bc5 {[%clk
0:00:20.4]} 26... Rfe8 {[%clk 0:00:11]} 27. b4 {[%clk 0:00:20.3]} 27... Qb7
{[%clk 0:00:11]} 28. Qg3 {[%clk 0:00:19.3]} 28... Red8 {[%clk 0:00:09.6]} 29.
Rc3 {[%clk 0:00:19]} 29... Be4 {[%clk 0:00:09.4]} 30. Re1 {[%clk 0:00:18.1]}
30... Bf5 {[%clk 0:00:05.4]} 31. Qf4 {[%clk 0:00:16.5]} 31... Qd7 {[%clk
0:00:05.3]} 32. Rg3 {[%clk 0:00:15.6]} 32... Bg6 {[%clk 0:00:02.7]} 33. Bd6
{[%clk 0:00:11.7]} 33... Qxa4 {[%clk 0:00:02.1]} 34. Qg4 {[%clk 0:00:10.4]}
34... Rg8 {[%clk 0:00:01.8]} 35. h5 {[%clk 0:00:10.6]} 35... Bf5 {[%clk
0:00:02.2]} 36. Qf3 {[%clk 0:00:09]} 36... Qc2 {[%clk 0:00:02.6]} 37. Kh2 {[%clk
0:00:08]} 37... Rc4 {[%clk 0:00:03.1]} 38. Kg1 {[%clk 0:00:06.4]} 38... Re4
{[%clk 0:00:02.1]} 39. Rxe4 {[%clk 0:00:05.8]} 39... Bxe4 {[%clk 0:00:01.2]} 40.
Qxf7 {[%clk 0:00:05.2]} 40... Bf5 {[%clk 0:00:01.6]} 0-1

[Event "*** Titled Tuesday Blitz"]
[Site "Chess.com"]
[Date "2020.11.03"]
[Round "2"]
[White "Susal_De_Silva"]
[Black "Dr-Bassem"]
[Result "0-1"]
[WhiteElo "2518"]
[BlackElo "2798"]
[TimeControl "180+1"]
[EndTime "10:19:30 PST"]
[Termination "Dr-Bassem won by resignation"]

1. e4 {[%clk 0:03:00.9]} 1... e5 {[%clk 0:02:59.9]} 2. Nf3 {[%clk 0:03:00.9]}
2... Nc6 {[%clk 0:03:00.4]} 3. d4 {[%clk 0:03:01.2]} 3... exd4 {[%clk
0:03:00.1]} 4. Bc4 {[%clk 0:03:01.8]} 4... Bc5 {[%clk 0:02:59.2]} 5. c3 {[%clk
0:03:00.2]} 5... Nf6 {[%clk 0:02:56.8]} 6. O-O {[%clk 0:02:51.3]} 6... Nxe4
{[%clk 0:02:48.9]} 7. cxd4 {[%clk 0:02:45.9]} 7... d5 {[%clk 0:02:49.1]} 8. dxc5
{[%clk 0:02:41.5]} 8... dxc4 {[%clk 0:02:49.1]} 9. Qe2 {[%clk 0:02:37.6]} 9...
Qd3 {[%clk 0:02:49.3]} 10. Re1 {[%clk 0:02:34.5]} 10... f5 {[%clk 0:02:48.7]}
11. Qxd3 {[%clk 0:02:25.3]} 11... cxd3 {[%clk 0:02:46]} 12. Nc3 {[%clk
0:02:25.3]} 12... O-O {[%clk 0:02:42.8]} 13. Nxe4 {[%clk 0:02:23.7]} 13... fxe4
{[%clk 0:02:43.7]} 14. Rxe4 {[%clk 0:02:23.5]} 14... Bf5 {[%clk 0:02:42.6]} 15.
Re1 {[%clk 0:02:22.8]} 15... Nb4 {[%clk 0:02:04.5]} 16. Nd4 {[%clk 0:02:19.4]}
16... Rad8 {[%clk 0:01:59.3]} 17. Be3 {[%clk 0:01:43.2]} 17... Rd5 {[%clk
0:01:10]} 18. a3 {[%clk 0:01:19.8]} 18... Nc2 {[%clk 0:01:02.4]} 19. Nxc2 {[%clk
0:01:19.7]} 19... dxc2 {[%clk 0:01:03.3]} 20. f3 {[%clk 0:01:10.1]} 20... Rfd8
{[%clk 0:01:02.3]} 21. Rac1 {[%clk 0:01:04.9]} 21... Rd1 {[%clk 0:00:59.1]} 22.
Kf2 {[%clk 0:01:04.2]} 22... Kf7 {[%clk 0:00:56.6]} 23. g4 {[%clk 0:01:01.4]}
23... Bg6 {[%clk 0:00:55]} 24. Ke2 {[%clk 0:00:55.3]} 24... Rxe1+ {[%clk
0:00:42.9]} 25. Kxe1 {[%clk 0:00:51]} 25... Ke6 {[%clk 0:00:41.2]} 26. Ke2
{[%clk 0:00:46.6]} 26... Kd5 {[%clk 0:00:37.4]} 27. b3 {[%clk 0:00:40.2]} 27...
Kc6 {[%clk 0:00:29.4]} 28. h4 {[%clk 0:00:38.7]} 28... h6 {[%clk 0:00:28.8]} 29.
h5 {[%clk 0:00:31.3]} 29... Bd3+ {[%clk 0:00:27.2]} 30. Ke1 {[%clk 0:00:29.5]}
30... Bh7 {[%clk 0:00:26.6]} 31. Kf2 {[%clk 0:00:21.2]} 31... Rd3 {[%clk
0:00:23.6]} 32. b4 {[%clk 0:00:19.7]} 32... Rxa3 {[%clk 0:00:22.7]} 33. f4
{[%clk 0:00:19.1]} 33... Be4 {[%clk 0:00:21.7]} 34. f5 {[%clk 0:00:18.9]} 34...
Kd5 {[%clk 0:00:19]} 35. f6 {[%clk 0:00:14.3]} 35... gxf6 {[%clk 0:00:18]} 36.
Bxh6 {[%clk 0:00:13.5]} 36... Rf3+ {[%clk 0:00:16.8]} 37. Ke2 {[%clk 0:00:13.9]}
37... Rg3 {[%clk 0:00:14.9]} 38. Bf4 {[%clk 0:00:07.5]} 38... Rxg4 {[%clk
0:00:11.8]} 39. Bxc7 {[%clk 0:00:08.4]} 39... Kd4 {[%clk 0:00:09.3]} 40. Bd8
{[%clk 0:00:04]} 40... Rg2+ {[%clk 0:00:09.5]} 41. Kf1 {[%clk 0:00:04.1]} 41...
Ke3 {[%clk 0:00:09.6]} 42. Bxf6 {[%clk 0:00:04.6]} 42... Rf2+ {[%clk 0:00:09.8]}
43. Ke1 {[%clk 0:00:05.1]} 43... Rxf6 {[%clk 0:00:09.7]} 44. Ra1 {[%clk
0:00:05.5]} 44... Bd3 {[%clk 0:00:08.6]} 0-1